Cogmind - Beta 16 @@@ ROGUE MODE // 2025.12.26 @ 17:33:19 Player: TheGamingJasper Result: Destroyed by G-73 Enforcer with Phase Gun Performance ------------- Evolutions (9) 4500 Regions Visited (15) 3000 Robots Destroyed (12) 60 Value Destroyed (271) 271 Prototype IDs (2) 40 Alien Tech Used (0) 0 Bonus (1440) 1440 TOTAL SCORE: 9311 Bonus ------- Triggered Max Security 1000 High Alert Combat Kills 80 Follower Combat Kills 60 Aligned with FarCom 300 Cogmind --------- Core Integrity 0/1600 Matter 300/300 Energy 99/100 System Corruption 44% Temperature Cool (9) Movement Core (50) Location -1/Access Parts ------- > --- POWER (2) -------- (None) > --- PROPULSION (8) --- (None) > --- UTILITY (13) ----- Machine Analyzer > --- WEAPON (2) ------- (None) > --- INVENTORY (5) ---- Huge Storage Unit Machine Analyzer KE Penetrator Power Sword Peak State ------------ > --- POWER ------------ Fission Core Micro Fission Core > --- PROPULSION ------- Field Propulsion Array Flying Fortress v7 Q-thruster Cooled Q-thruster > --- UTILITY ---------- Enhanced Optical Array Improved Melee Analysis Suite ECM Suite Cloaking Device Improved Medium Armor Plating Layered Medium Armor Plating Hacking Suite Hacking Suite Improved Hacking Suite System Shield Advanced System Shield > --- WEAPON ----------- KE Penetrator Power Sword > --- INVENTORY -------- Quantum Reactor Impulse Thruster Huge Storage Unit Power Sword [Rating: 132] Favorites ----------- Power Fission Core Engine Light Ion Engine Power Core Fission Core Reactor Micro Antimatter Reactor Propulsion Flying Fortress v7 Leg Aluminum Leg Flight Unit Flying Fortress v7 Utility System Shield Device ECM Suite Storage Small Storage Unit Processor Improved Melee Analysis Suite Hackware System Shield Protection Improved Medium Armor Plating Weapon Power Sword Ballistic Gun Light Assault Rifle Slashing Weapon Power Sword Build | -11 -10 -10 -10 -9 -8 -7 -6 -6 -6 -5 -4 -3 -2 -2 -1 ------- Run | Yrd Mat Min Exi Min Mat Fac Fac Low Low Fac Fac Res Res Tes Acc Slots Evolved 18 | . . . . . 4 2 2 . . 2 2 2 2 . 2 Power 1 | . . . . . . . . . . . . 1 . . . Propulsion 6 | . . . . . 2 . 1 . . 1 . . 2 . . Utility 11 | . . . . . 2 2 1 . . 1 2 1 . . 2 Weapon . | . . . . . . . . . . . . . . . . Parts Attached 49 | 6 5 1 3 2 2 3 1 1 . 7 2 1 4 1 10 Power 7 | 1 1 . 1 . . . . . . 1 . 1 . . 2 Engine 2 | 1 1 . . . . . . . . . . . . . . Core 3 | . . . 1 . . . . . . 1 . 1 . . . Reactor 2 | . . . . . . . . . . . . . . . 2 Propulsion 18 | 2 3 . 1 2 1 . . 1 . . . . 2 1 5 Treads . | . . . . . . . . . . . . . . . . Leg 2 | 2 . . . . . . . . . . . . . . . Wheel . | . . . . . . . . . . . . . . . . Hover . | . . . . . . . . . . . . . . . . Flight 16 | . 3 . 1 2 1 . . 1 . . . . 2 1 5 Utility 19 | 1 1 1 1 . . 3 1 . . 4 2 . 2 . 3 Device 3 | . 1 . . . . . . . . 2 . . . . . Storage 2 | 1 . . . . . . . . . . . . . . 1 Processor 3 | . . . . . . 1 . . . . . . 1 . 1 Hackware 7 | . . 1 1 . . . 1 . . 1 2 . . . 1 Protection 4 | . . . . . . 2 . . . 1 . . 1 . . Artifact . | . . . . . . . . . . . . . . . . Weapon 5 | 2 . . . . 1 . . . . 2 . . . . . Energy Gun . | . . . . . . . . . . . . . . . . Energy Cannon . | . . . . . . . . . . . . . . . . Ballistic Gun 3 | 2 . . . . . . . . . 1 . . . . . Ballistic Cannon . | . . . . . . . . . . . . . . . . Launcher . | . . . . . . . . . . . . . . . . Special Weapon . | . . . . . . . . . . . . . . . . Impact Weapon . | . . . . . . . . . . . . . . . . Slashing Weapon 2 | . . . . . 1 . . . . 1 . . . . . Piercing Weapon . | . . . . . . . . . . . . . . . . Special Melee Weapon . | . . . . . . . . . . . . . . . . Unidentified Prototypes 2 | . . . . . 1 . . . . . . . 1 . . Parts Lost 28 | . 1 . . 2 . . . . . . . . 2 1 22 Power 2 | . . . . . . . . . . . . . . . 2 Propulsion 13 | . 1 . . 2 . . . . . . . . 1 1 8 Utility 12 | . . . . . . . . . . . . . 1 . 11 Weapon 1 | . . . . . . . . . . . . . . . 1 Highest Loss Streak 9 | . 1 . . 1 . . . . . . . . 2 1 9 To Critical Strikes . | . . . . . . . . . . . . . . . . Average Backups 3 | 1 4 4 3 1 2 3 3 5 5 4 2 2 2 3 4 Power . | . 1 1 . . . . . 1 1 1 1 . . 1 . Propulsion . | . 1 2 2 1 1 1 . 1 1 . 1 1 . . . Utility . | . . 1 1 . . . . 1 1 1 . 1 . . 1 Weapon 1 | . . . . . 1 2 2 2 2 1 . . . 1 1 Tool/Special . | . . . . . . . . . . . . . . . . Unused Backups 6 | . . . . . . . 1 . . 2 1 . . . 2 Power . | . . . . . . . . . . . . . . . . Propulsion 1 | . . . . . . . . . . . 1 . . . . Utility 2 | . . . . . . . . . . 1 . . . . 1 Weapon 3 | . . . . . . . 1 . . 1 . . . . 1 Tool/Special . | . . . . . . . . . . . . . . . . Average Slot Usage (%) 69 | . 74 94 100 99 54 61 70 73 73 80 83 80 81 81 43 Engine 1 | . 14 14 7 . . . . . . . . . . . . Core 5 | . . . 6 14 9 7 6 6 6 5 5 9 8 8 2 Flight 14 | . 21 28 28 27 9 7 13 13 13 16 15 14 16 16 10 Device 6 | . 10 14 6 . . . . . . 10 10 9 8 8 6 Processor 4 | . . . . . . 5 6 6 6 5 5 4 7 8 4 Hackware 16 | . . 8 21 28 18 15 17 20 20 17 25 23 21 21 10 Protection 6 | . . . . . . 9 13 13 13 11 10 9 8 8 2 Ballistic Gun 7 | . 21 28 28 28 10 7 6 6 6 5 5 4 4 4 1 Slashing Weapon 4 | . . . . . 7 7 6 6 6 5 5 4 4 4 3 Peak Build Rating 132 | 6 8 12 18 18 47 55 61 65 65 86 95 100 129 129 132 Average Rating 69 | 3 6 10 15 17 45 52 58 61 65 81 93 99 123 128 69 On Entrance 55 | . 6 8 12 18 16 46 55 61 65 65 86 94 100 129 124 Avg Prop Armor Cover (%) 2 | . . . . . . . . . . . . . . 2 4 Naked Turns . | . . . . . . . . . . . . . . . . Heaviest Build 44 | 12 12 6 7 7 9 17 17 17 17 35 35 40 41 41 44 Greatest Support 80 | 20 20 8 8 8 50 50 54 56 56 60 60 60 78 78 80 Greatest Overweight (x) 5 | . 3 . . 1 . . . . . . . . . . 5 Average Overweight (x) . | . . . . . . . . . . . . . . . . Largest Inventory Capacity 25 | 8 8 5 5 5 5 5 5 5 5 5 5 5 5 5 25 Average Capacity 5 | 7 5 5 5 5 5 5 5 5 5 5 5 5 5 5 5 Most Carried 5 | 5 5 5 5 5 5 4 5 5 5 5 5 4 4 4 5 Average Carried 3 | 1 4 4 4 4 2 3 3 5 5 4 3 3 2 3 3 Final Capacity 8 | 8 5 5 5 5 5 5 5 5 5 5 5 5 5 5 5 Final Carried 5 | 1 4 5 5 4 3 3 5 5 5 5 4 4 4 4 4 Class Distribution -------------------- 54% | Hacker-Mutant 27% | Hacker-Sprinter 10% | Mutant 7% | Sprinter Dominant Class ---------------- Sprinter | -10/Materials Sprinter | -10/Mines Hacker-Sprinter | -10/Exiles Hacker-Mutant | -9/Mines Hacker-Mutant | -8/Materials Hacker-Mutant | -7/Factory Hacker-Mutant | -6/Factory Hacker-Mutant | -6/Lower Caves Hacker-Mutant | -6/Lower Caves Hacker-Mutant | -5/Factory Hacker-Mutant | -4/Factory Hacker-Mutant | -3/Research Hacker-Sprinter | -2/Research Hacker-Sprinter | -2/Testing Mutant | -1/Access Resources | -11 -10 -10 -10 -9 -8 -7 -6 -6 -6 -5 -4 -3 -2 -2 -1 ----------- Run | Yrd Mat Min Exi Min Mat Fac Fac Low Low Fac Fac Res Res Tes Acc Matter Collected 726 | 197 29 113 . 12 . . . . . . . 64 . 231 80 Remotely . | . . . . . . . . . . . . . . . . Salvage Created 300 | . 29 . . 40 . . . . . 14 . 64 . . 153 Parts 31 | . 3 . . 7 . . . . . 4 . 6 . . 11 Haulers Intercepted . | . . . . . . . . . . . . . . . . Recyclers Shooed . | . . . . . . . . . . . . . . . . Parts Field Recycled . | . . . . . . . . . . . . . . . . Retrieved Matter . | . . . . . . . . . . . . . . . . Parts Self-Destructed . | . . . . . . . . . . . . . . . . Prevented . | . . . . . . . . . . . . . . . . Parts Restored . | . . . . . . . . . . . . . . . . Kills | -11 -10 -10 -10 -9 -8 -7 -6 -6 -6 -5 -4 -3 -2 -2 -1 ------- Run | Yrd Mat Min Exi Min Mat Fac Fac Low Low Fac Fac Res Res Tes Acc Combat Hostiles Destroyed 7 | . 2 . . 3 . . . . . . . . . . 2 Melee 2 | . . . . . . . . . . . . . . . 2 Guns 5 | . 2 . . 3 . . . . . . . . . . . Classes Destroyed 4 | . 1 . . . . . . . . 1 . 1 . . 1 Worker 3 | . . . . . . . . . . . . 3 . . . Operator 2 | . . . . . . . . . . 1 . . . . 1 Swarmer 5 | . 2 . . 3 . . . . . . . . . . . Programmer 2 | . . . . . . . . . . . . . . . 2 Best Kill Streak 3 | . 2 . . 3 . . . . . 1 . 3 . . 1 Combat Bots Only 3 | . 2 . . 3 . . . . . . . . . . 1 Max Kills in Single Turn 1 | . 1 . . 1 . . . . . 1 . 1 . . 1 Gunslinging . | . . . . . . . . . . . . . . . . Exploded . | . . . . . . . . . . . . . . . . Melee 1 | . . . . . . . . . . . . . . . 1 Uniques/NPCs Destroyed . | . . . . . . . . . . . . . . . . Combat | -11 -10 -10 -10 -9 -8 -7 -6 -6 -6 -5 -4 -3 -2 -2 -1 -------- Run | Yrd Mat Min Exi Min Mat Fac Fac Low Low Fac Fac Res Res Tes Acc Hostile Shots Fired 347 | . 21 . . 19 22 . 3 . 4 . . 2 53 50 173 Missed 150 | . 5 . . 8 13 . 2 . 2 . . 1 16 30 73 Hits 197 | . 16 . . 11 9 . 1 . 2 . . 1 37 20 100 Projectile 197 | . 16 . . 11 9 . 1 . 2 . . 1 37 20 100 AOE 2 | . . . . . . . . . . . . . . . 2 Critical Strikes 8 | . . . . . 1 . . . . . . . 2 1 4 Part Disruptions 2 | . . . . . . . . . . . . . . 1 1 Damage Taken 5138 | . 128 . . 96 127 . 13 . 37 . . 30 836 492 3379 Core 1778 | . 16 . . 10 43 . . . 18 . . . 65 . 1626 Absorbed by Shields 6 | . . . . . . . . . . . . . 6 . . Redirected to Shielding 4 | . . . . . . . 4 . . . . . . . . Core Remaining (%) 97 | 100 . . . 89 92 100 . . 97 100 100 100 . 95 . Volleys Fired 25 | . 8 . . 14 . . . . . . . . 3 . . Largest 2 | . 2 . . 2 . . . . . . . . 1 . . Hottest 40 | . 40 . . 40 . . . . . . . . 33 . . Shots Fired 45 | . 14 . . 28 . . . . . . . . 3 . . Gun 45 | . 14 . . 28 . . . . . . . . 3 . . Cannon . | . . . . . . . . . . . . . . . . Launcher . | . . . . . . . . . . . . . . . . Special . | . . . . . . . . . . . . . . . . Kinetic 45 | . 14 . . 28 . . . . . . . . 3 . . Thermal . | . . . . . . . . . . . . . . . . Explosive . | . . . . . . . . . . . . . . . . Electromagnetic . | . . . . . . . . . . . . . . . . Robot Hit Streak 8 | . 5 . . 8 . . . . . . . . . . . Robot Miss Streak 7 | . 3 . . 7 . . . . . . . . 3 . . Penetration Max . | . . . . . . . . . . . . . . . . Secondary Targets . | . . . . . . . . . . . . . . . . Shots Hit Robots 36 | . 7 . . 16 . . . . . 1 . 3 . . 9 Core Hits 20 | . 4 . . 5 . . . . . 1 . 2 1 . 7 Critical Kills . | . . . . . . . . . . . . . . . . Critical Parts Destroyed 1 | . 1 . . . . . . . . . . . . . . Critical Strikes 2 | . 1 . . . . . . . . . . . . . 1 Destroy 1 | . 1 . . . . . . . . . . . . . . Sever 1 | . . . . . . . . . . . . . . . 1 Melee Attacks 45 | . . . . . . 1 1 . . 2 . 7 2 . 32 Impact . | . . . . . . . . . . . . . . . . Slashing 45 | . . . . . . 1 1 . . 2 . 7 2 . 32 Piercing . | . . . . . . . . . . . . . . . . Sneak Attacks 3 | . . . . . . . . . . . . 3 . . . Combat Hostiles . | . . . . . . . . . . . . . . . . Follow-up Attacks . | . . . . . . . . . . . . . . . . Damage Inflicted 1003 | . 71 . . 123 . . . . . 57 . 260 26 . 466 Guns 220 | . 71 . . 123 . . . . . . . . 26 . . Cannons . | . . . . . . . . . . . . . . . . Explosions . | . . . . . . . . . . . . . . . . Melee 715 | . . . . . . . . . . 57 . 260 . . 398 Ramming 68 | . . . . . . . . . . . . . . . 68 Kinetic 220 | . 71 . . 123 . . . . . . . . 26 . . Thermal . | . . . . . . . . . . . . . . . . Explosive . | . . . . . . . . . . . . . . . . Electromagnetic . | . . . . . . . . . . . . . . . . Impact . | . . . . . . . . . . . . . . . . Slashing 715 | . . . . . . . . . . 57 . 260 . . 398 Piercing . | . . . . . . . . . . . . . . . . Highest Corruption 44 | . . . . . . . . . . . . . . . 44 Average Corruption 29 | . . . . . . . . . . . . . . . 29 Corruption Purged . | . . . . . . . . . . . . . . . . Corruption Blocked . | . . . . . . . . . . . . . . . . Effects 41 | . . . . . . . . . . . . . . . 41 Message Errors 8 | . . . . . . . . . . . . . . . 8 Matter Fused 5 | . . . . . . . . . . . . . . . 5 Heat Flow Errors 8 | . . . . . . . . . . . . . . . 8 Energy Discharges 4 | . . . . . . . . . . . . . . . 4 Data Loss (minor) 3 | . . . . . . . . . . . . . . . 3 Data Loss (major) 3 | . . . . . . . . . . . . . . . 3 Misdirections 10 | . . . . . . . . . . . . . . . 10 Overload Shots . | . . . . . . . . . . . . . . . . Overflow Damage 69 | . . . . . . . . . . . . 51 . . 18 Projectiles . | . . . . . . . . . . . . . . . . Explosions . | . . . . . . . . . . . . . . . . Melee 69 | . . . . . . . . . . . . 51 . . 18 Knockbacks . | . . . . . . . . . . . . . . . . Impact . | . . . . . . . . . . . . . . . . Kinetic . | . . . . . . . . . . . . . . . . Secondary . | . . . . . . . . . . . . . . . . Self-Inflicted Damage 31 | . . . . . . . . . . . . . . . 31 Shots . | . . . . . . . . . . . . . . . . Rammed 12 | . . . . . . . . . . . . . 1 . 11 Targets Rammed 12 | . . . . . . . . . . . . . 1 . 11 Kicked . | . . . . . . . . . . . . . . . . Crushed . | . . . . . . . . . . . . . . . . Highest Temperature 248 | . 8 . . 16 22 . . . 3 . . 2 39 7 248 Average Temperature 34 | . 3 . . 8 15 . . . 3 . . 2 14 2 104 Received Heat Transfer 327 | . . . . . 72 . . . 18 . . 9 72 36 120 Siege Activations . | . . . . . . . . . . . . . . . . Martial Activations . | . . . . . . . . . . . . . . . . Shielding Activations . | . . . . . . . . . . . . . . . . Robots Disrupted . | . . . . . . . . . . . . . . . . Combat Hostiles . | . . . . . . . . . . . . . . . . Robots Corrupted . | . . . . . . . . . . . . . . . . Combat Hostiles . | . . . . . . . . . . . . . . . . Parts Fried . | . . . . . . . . . . . . . . . . Impact Corruptions . | . . . . . . . . . . . . . . . . Robots Melted . | . . . . . . . . . . . . . . . . Combat Hostiles . | . . . . . . . . . . . . . . . . Parts Melted . | . . . . . . . . . . . . . . . . Heat Transferred . | . . . . . . . . . . . . . . . . Parts Sabotaged . | . . . . . . . . . . . . . . . . Parts Stolen . | . . . . . . . . . . . . . . . . Parts Stripped . | . . . . . . . . . . . . . . . . Power Chain Reactions . | . . . . . . . . . . . . . . . . Alert | -11 -10 -10 -10 -9 -8 -7 -6 -6 -6 -5 -4 -3 -2 -2 -1 ------- Run | Yrd Mat Min Exi Min Mat Fac Fac Low Low Fac Fac Res Res Tes Acc Maximum Alert Level 5 | . . . . . . . . . . . . . . 5 4 Low Security (%) 62 | 100 100 100 . 100 100 100 100 . . 100 100 100 100 . . Level 1 . | . . . . . . . . . . . . . . . . Level 2 1 | . . . . . . . . . . . . . . . 3 Level 3 27 | . . . . . . . . . . . . . . . 94 Level 4 . | . . . . . . . . . . . . . . . 1 Level 5 . | . . . . . . . . . . . . . . . . High Security . | . . . . . . . . . . . . . . . . Max Security 8 | . . . . . . . . . . . . . . 99 . Peak Influence 1600 | . 50 68 . 85 25 1 15 . . 15 8 15 3 1600 1100 Initial 1100 | . . 15 . . 25 . . . . . . . . . 1100 Average 397 | . 7 36 . 32 5 . . . . . 1 2 . 1594 886 Influence Increases 649 | . 70 123 . 145 15 1 16 . . 30 8 23 3 . 215 Destroy 0b10 Robot/C 220 | . 40 80 . 60 . . . . . . . . . . 40 Destroy 0b10 Robot/NC 25 | . . . . . . . . . . 5 . 15 . . 5 Destroy Leader 50 | . . 20 . 10 . . . . . . . . . . 20 Allied During Kill 8 | . . 8 . . . . . . . . . . . . . Successful Hack 16 | . . . . . . . . . . 8 8 . . . . Disable Machine 15 | . . . . . . . . . . . . . . . 15 Destroy Structure 60 | . . . . . . 1 1 . . 2 . 8 3 . 45 Partial Spotted 105 | . . . . 15 15 . . . . 15 . . . . 60 Lose Combat Pursuer 150 | . 30 15 . 60 . . 15 . . . . . . . 30 Influence Decreases 1717 | . 30 115 48 80 80 1 16 . . 30 8 21 5 10 1273 Entered New Map 752 | . . 25 48 . 40 . . . . . . . 2 . 637 Time Decay 682 | . 20 70 . 60 40 1 16 . . 30 8 21 . . 416 Lost Part 263 | . 10 . . 20 . . . . . . . . 3 10 220 Lost Ally 20 | . . 20 . . . . . . . . . . . . . Squads Dispatched 26 | . 1 1 . . 1 . . . . 1 . . 1 12 9 Investigation 2 | . . 1 . . . . . . . . . . . . 1 Extermination 6 | . . . . . . . . . . 1 . . 1 . 4 Reinforcement 5 | . 1 . . . 1 . . . . . . . . . 3 Assault 13 | . . . . . . . . . . . . . . 12 1 Garrison . | . . . . . . . . . . . . . . . . Intercept . | . . . . . . . . . . . . . . . . Searches Triggered . | . . . . . . . . . . . . . . . . Construction Impeded . | . . . . . . . . . . . . . . . . Haulers Reinforced . | . . . . . . . . . . . . . . . . Active Scanning Responses . | . . . . . . . . . . . . . . . . Cargo Convoy Interrupts . | . . . . . . . . . . . . . . . . Stealth | -11 -10 -10 -10 -9 -8 -7 -6 -6 -6 -5 -4 -3 -2 -2 -1 --------- Run | Yrd Mat Min Exi Min Mat Fac Fac Low Low Fac Fac Res Res Tes Acc Distress Signals 5 | . 1 . . . . . . . . 1 1 . . . 2 Communications Jammed . | . . . . . . . . . . . . . . . . Distress Signals . | . . . . . . . . . . . . . . . . Times Spotted 131 | . 11 4 . 6 8 . 2 . 3 8 . 3 11 24 51 Peak Tracking Total 19 | . 7 2 . 4 7 . 2 . 3 3 5 3 4 15 19 Tactical Retreats 22 | . 2 1 . 3 . . 1 . . 1 1 . 2 2 9 ECM-based Alert Blocks 46 | . . . . . . . . . . 1 4 . 8 11 22 Traps | -11 -10 -10 -10 -9 -8 -7 -6 -6 -6 -5 -4 -3 -2 -2 -1 ------- Run | Yrd Mat Min Exi Min Mat Fac Fac Low Low Fac Fac Res Res Tes Acc Traps Triggered 1 | . . . . . . . . . . . . . 1 . . Indirectly . | . . . . . . . . . . . . . . . . Trap Hack Attempts . | . . . . . . . . . . . . . . . . Triggered . | . . . . . . . . . . . . . . . . Disarmed . | . . . . . . . . . . . . . . . . Reprogrammed . | . . . . . . . . . . . . . . . . Reused . | . . . . . . . . . . . . . . . . Traps Extracted . | . . . . . . . . . . . . . . . . Installed . | . . . . . . . . . . . . . . . . Triggered . | . . . . . . . . . . . . . . . . Machines | -11 -10 -10 -10 -9 -8 -7 -6 -6 -6 -5 -4 -3 -2 -2 -1 ---------- Run | Yrd Mat Min Exi Min Mat Fac Fac Low Low Fac Fac Res Res Tes Acc Machines Disabled 1 | . . . . . . . . . . . . . . . 1 Max in Single Turn 1 | . . . . . . . . . . . . . . . 1 Machines Repaired . | . . . . . . . . . . . . . . . . Machines Dismantled . | . . . . . . . . . . . . . . . . Machines Sabotaged . | . . . . . . . . . . . . . . . . Overloaded Fab Kills . | . . . . . . . . . . . . . . . . Hacking | -11 -10 -10 -10 -9 -8 -7 -6 -6 -6 -5 -4 -3 -2 -2 -1 --------- Run | Yrd Mat Min Exi Min Mat Fac Fac Low Low Fac Fac Res Res Tes Acc Machines Accessed 21 | . 3 1 . . . . 1 . . 3 3 1 1 . 8 Terminals 19 | . 3 . . . . . 1 . . 2 3 1 1 . 8 Fabricators . | . . . . . . . . . . . . . . . . Repair Stations . | . . . . . . . . . . . . . . . . Recycling Units . | . . . . . . . . . . . . . . . . Scanalyzers 1 | . . . . . . . . . . 1 . . . . . Garrison Access . | . . . . . . . . . . . . . . . . Total Hacks 33 | . 3 1 . . . . 2 . . 6 8 1 2 . 10 Successful 8 | . 2 1 . . . . . . . 1 3 1 . . . Failed 25 | . 1 . . . . . 2 . . 5 5 . 2 . 10 Catastrophic 10 | . . . . . . . . . . 1 2 . . . 7 Database Lockouts . | . . . . . . . . . . . . . . . . Manual 19 | . 1 . 1 . . . 1 . . 3 4 1 2 . 6 Terminals 30 | . 3 . . . . . 2 . . 4 8 1 2 . 10 Fabricators . | . . . . . . . . . . . . . . . . Repair Stations . | . . . . . . . . . . . . . . . . Recycling Units . | . . . . . . . . . . . . . . . . Scanalyzers 2 | . . . . . . . . . . 2 . . . . . Garrison Access . | . . . . . . . . . . . . . . . . Terminal Hacks 8 | . 2 1 . . . . . . . 1 3 1 . . . Record 2 | . . . . . . . . . . . 2 . . . . Open Door 1 | . . 1 . . . . . . . . . . . . . Level Access Points 3 | . . . . . . . . . . 1 1 1 . . . Branch Access Points 1 | . 1 . . . . . . . . . . . . . . Hauler Manifests 1 | . 1 . . . . . . . . . . . . . . Fabricator Hacks . | . . . . . . . . . . . . . . . . Repair Station Hacks . | . . . . . . . . . . . . . . . . Recycling Unit Hacks . | . . . . . . . . . . . . . . . . Scanalyzer . | . . . . . . . . . . . . . . . . Garrison Access Hacks . | . . . . . . . . . . . . . . . . Unauthorized Hacks . | . . . . . . . . . . . . . . . . Terminals . | . . . . . . . . . . . . . . . . Fabricators . | . . . . . . . . . . . . . . . . Repair Stations . | . . . . . . . . . . . . . . . . Recycling Units . | . . . . . . . . . . . . . . . . Scanalyzers . | . . . . . . . . . . . . . . . . Garrison Access . | . . . . . . . . . . . . . . . . Data Cores Recovered 2 | . . . . . . . . . . 1 . . . . 1 Used 1 | . . . . . . . . . . . . . . . 1 Hacking Detections 13 | . 1 . . . . . 1 . . 1 2 . 1 . 7 Full Trace Events 1 | . . . . . . . . . . . . . . . 1 Feedback Events . | . . . . . . . . . . . . . . . . Feedback Blocked . | . . . . . . . . . . . . . . . . Robot Schematics Acquired . | . . . . . . . . . . . . . . . . Robots Built . | . . . . . . . . . . . . . . . . Authchips . | . . . . . . . . . . . . . . . . Time . | . . . . . . . . . . . . . . . . Total Robot Build Rating . | . . . . . . . . . . . . . . . . Part Schematics Acquired . | . . . . . . . . . . . . . . . . Parts Built . | . . . . . . . . . . . . . . . . Authchips . | . . . . . . . . . . . . . . . . Time . | . . . . . . . . . . . . . . . . Total Part Build Rating . | . . . . . . . . . . . . . . . . Part Studies Acquired . | . . . . . . . . . . . . . . . . Parts Repaired . | . . . . . . . . . . . . . . . . Time . | . . . . . . . . . . . . . . . . Parts Recycled . | . . . . . . . . . . . . . . . . Recycled Matter . | . . . . . . . . . . . . . . . . Retrieved Matter . | . . . . . . . . . . . . . . . . Retrieved Components . | . . . . . . . . . . . . . . . . Parts Scanalyzed . | . . . . . . . . . . . . . . . . Part Schematics Acquired . | . . . . . . . . . . . . . . . . Parts Damaged . | . . . . . . . . . . . . . . . . Bothacking | -11 -10 -10 -10 -9 -8 -7 -6 -6 -6 -5 -4 -3 -2 -2 -1 ------------ Run | Yrd Mat Min Exi Min Mat Fac Fac Low Low Fac Fac Res Res Tes Acc Used RIF Installer . | . . . . . . . . . . . . . . . . Robots Hacked . | . . . . . . . . . . . . . . . . Non-combat . | . . . . . . . . . . . . . . . . Combat . | . . . . . . . . . . . . . . . . Robot Hacks Applied . | . . . . . . . . . . . . . . . . Relay Couplers Released . | . . . . . . . . . . . . . . . . Fabnet Peak Effective % . | . . . . . . . . . . . . . . . . Robots Rewired . | . . . . . . . . . . . . . . . . Allies Hacked . | . . . . . . . . . . . . . . . . Hacks Repelled . | . . . . . . . . . . . . . . . . Allies | -11 -10 -10 -10 -9 -8 -7 -6 -6 -6 -5 -4 -3 -2 -2 -1 -------- Run | Yrd Mat Min Exi Min Mat Fac Fac Low Low Fac Fac Res Res Tes Acc Total Allies 4 | . . 3 . 1 . . . . . . . . . . . Largest Group 3 | . . 3 . 1 . . . . . . . . . . . Highest-Rated Group 40 | . . 40 . 31 . . . . . . . . . . . Highest-Rated Ally 31 | . . 16 . 31 . . . . . . . . . . . Total Orders . | . . . . . . . . . . . . . . . . Ally Attacks 23 | . . 23 . . . . . . . . . . . . . Total Damage 242 | . . 242 . . . . . . . . . . . . . Kills 4 | . . 4 . . . . . . . . . . . . . Allies Corrupted . | . . . . . . . . . . . . . . . . Allies Melted . | . . . . . . . . . . . . . . . . Intel | -11 -10 -10 -10 -9 -8 -7 -6 -6 -6 -5 -4 -3 -2 -2 -1 ------- Run | Yrd Mat Min Exi Min Mat Fac Fac Low Low Fac Fac Res Res Tes Acc Active Infowar (turns) 2584 | . 95 150 37 . . . . . . 566 80 178 275 306 897 Optics 926 | . . . . . . . . . . . . . 274 306 346 Seismic 282 | . 95 150 37 . . . . . . . . . . . . Machine Analysis 494 | . . . . . . . . . . . . . . . 494 Cloaking 1807 | . . . . . . . . . . 566 80 178 275 306 402 ECM 1985 | . . . . . . . . . . 491 80 178 275 306 655 Robot Analysis Total . | . . . . . . . . . . . . . . . . Derelict Logs Recovered 3 | . . 1 . 1 . . . 1 . . . . . . . Drone Launches . | . . . . . . . . . . . . . . . . Drone Recoveries . | . . . . . . . . . . . . . . . . Exploration | -11 -10 -10 -10 -9 -8 -7 -6 -6 -6 -5 -4 -3 -2 -2 -1 ------------- Run | Yrd Mat Min Exi Min Mat Fac Fac Low Low Fac Fac Res Res Tes Acc Turns Passed 3801 | 53 127 150 84 182 238 151 202 158 40 566 80 178 275 306 1011 Spaces Moved 5644 | 42 166 341 240 256 178 285 358 373 96 780 204 361 319 304 1341 Core 67 | 14 3 . . . . . . . . . . . . . 50 Treads . | . . . . . . . . . . . . . . . . Legs 33 | 28 5 . . . . . . . . . . . . . . Wheels . | . . . . . . . . . . . . . . . . Hover . | . . . . . . . . . . . . . . . . Flight 5544 | . 158 341 240 256 178 285 358 373 96 780 204 361 319 304 1291 Fastest Speed 28 | 50 32 32 32 32 50 50 42 42 42 37 37 37 31 31 28 Average Speed 38 | 96 38 32 32 35 50 50 42 42 42 37 37 37 31 31 37 Slowest Speed 440 | 120 200 32 32 120 50 50 42 42 42 42 37 37 33 37 440 Overloaded Moves . | . . . . . . . . . . . . . . . . Propulsion Burnouts . | . . . . . . . . . . . . . . . . Robots Hopped 61 | . . 2 . 4 2 2 3 1 . 5 3 2 5 10 22 Potential Cave-ins 3 | . . . . . . . . . . . . . . . 3 Cave-ins Triggered 3 | . . . . . . . . . . . . . . . 3 Exploration Rate (%) 27 | 5 32 62 49 55 22 8 11 60 14 22 6 11 12 30 38 Regions Visited 15 Branch Regions 6 Pre-discovered Areas . | . . . . . . . . . . . . . . . . Known Exits Taken 5 | . 1 . . . . . . 1 . 1 1 1 . . . Unknown Exits Taken 10 | 1 . 1 1 1 1 1 1 . 1 . . . 1 1 . Scrap Searched 2 | . . 1 . . . . . 1 . . . . . . . Spaces Dug 22 | . . . . . . 1 1 . . 1 . 4 . . 15 Terrain Destroyed 22 | . . . . . . 1 1 . . 1 . 4 . . 15 Melee 22 | . . . . . . 1 1 . . 1 . 4 . . 15 Projectile . | . . . . . . . . . . . . . . . . AOE . | . . . . . . . . . . . . . . . . Terrain Rammed . | . . . . . . . . . . . . . . . . Walls Destroyed . | . . . . . . . . . . . . . . . . Machines Disabled . | . . . . . . . . . . . . . . . . Actions | -11 -10 -10 -10 -9 -8 -7 -6 -6 -6 -5 -4 -3 -2 -2 -1 --------- Run | Yrd Mat Min Exi Min Mat Fac Fac Low Low Fac Fac Res Res Tes Acc Total 7117 | 54 218 379 247 320 325 289 405 372 95 1046 205 392 483 503 1784 Wait 1329 | . 30 37 . 52 140 . 42 . . 245 . 25 155 206 397 Move 5512 | 41 165 336 239 247 173 280 351 370 95 769 197 356 309 285 1299 Hop 57 | . . 2 . 4 2 2 3 1 . 5 3 2 5 8 20 Pick Up 52 | 7 5 2 1 1 4 3 5 . . 9 2 1 4 2 6 Fast Attach 5 | . 1 1 . . . . . . . 1 . . . . 2 Attach 39 | 6 4 . . 2 1 3 2 . . 4 2 1 4 1 9 Detach 7 | . 2 . . . 1 . . . . 1 . . . . 3 Swap 10 | . 1 . 3 . 1 . . 1 . 3 . . . . 1 Drop 23 | . 2 1 4 . 3 . 1 . . 7 1 . . 1 3 Fire 25 | . 8 . . 14 . . . . . . . . 3 . . Melee 45 | . . . . . . 1 1 . . 2 . 7 2 . 32 Ram 12 | . . . . . . . . . . . . . . . 12 Kick . | . . . . . . . . . . . . . . . . Crush . | . . . . . . . . . . . . . . . . Escape Stasis 1 | . . . . . . . . . . . . . 1 . . Rewire . | . . . . . . . . . . . . . . . . Trap . | . . . . . . . . . . . . . . . . Miscellaneous . | . . . . . . . . . . . . . . . . Route ------- -11/Scrapyard -10/Materials -10/Mines (discovered 3 exits: [*Mat x2] / *Exi) -10/Exiles -9/Mines -8/Materials -7/Factory -6/Factory (discovered 2 exits: *Fac / [*Low]) -6/Lower Caves -6/Lower Caves -5/Factory (discovered 4 exits: *Fac x4) -4/Factory (discovered 4 exits: *Res x4) -3/Research (discovered 3 exits: *Res x3) -2/Research -2/Testing -1/Access History --------- Turn | Location | Event 6 | -11/Scrapyard | Discovered new exit (range 16) 54 | -11/Scrapyard | Entered Materials 88 | -10/Materials | Identified exit to Mines 181 | -10/Materials | Entered Mines 196 | -10/Mines | Assisted by bots powering up and referring to "LRC-V3" 228 | -10/Mines | Discovered new exit (range 13) 232 | -10/Mines | Met a Derelict shopkeep closing up shop 280 | -10/Mines | Received a Rocket Launcher from a helpful Derelict 283 | -10/Mines | Discovered new exit (range 12) 330 | -10/Mines | Deemed a non-threat by the Exiles lab entrance 330 | -10/Mines | Discovered new exit (range 5) 331 | -10/Mines | Entered Exiles 339 | -10/Exiles | Met 8R-AWN 345 | -10/Exiles | Met EX-HEX 355 | -10/Exiles | Met EX-BIN 358 | -10/Exiles | Aligned with FarCom system 359 | -10/Exiles | Given EX-Vault access code 366 | -10/Exiles | Opened EX-Vault 374 | -10/Exiles | Found Prototype Flight Unit 382 | -10/Exiles | Warned to stay clear of 0b10 Research branches 392 | -10/Exiles | Met EX-DEC 412 | -10/Exiles | Discovered new exit (range 14) 415 | -10/Exiles | Left Exiles lab with Flying Fortress v7 415 | -10/Exiles | Entered Mines 578 | -9/Mines | Learned Materials interactive machine intel 580 | -9/Mines | Received a Mining Laser from a helpful Derelict 595 | -9/Mines | Discovered new exit (range 5) 597 | -9/Mines | Entered Materials 597 | -8/Materials | Evolved 4 slots: Propulsion x2, Utility x2 598 | -8/Materials | Loaded intel: 19 interactive machine locations 599 | -8/Materials | Identified Flying Fortress v7 797 | -8/Materials | Build established: Hacker-Mutant 820 | -8/Materials | Discovered new exit (range 15) 835 | -8/Materials | Entered Factory 835 | -7/Factory | Evolved 2 slots: Utility x2 943 | -7/Factory | Discovered new exit (range 15) 986 | -7/Factory | Entered another Factory area 986 | -6/Factory | Evolved 2 slots: Propulsion x1, Utility x1 1114 | -6/Factory | Discovered new exit (range 15) 1185 | -6/Factory | Discovered new exit (range 6) 1188 | -6/Factory | Entered Lower Caves 1330 | -6/Lower Caves | Identified exit to Lower Caves 1346 | -6/Lower Caves | Entered another Lower Caves area 1381 | -6/Lower Caves | Discovered new exit (range 14) 1386 | -6/Lower Caves | Entered Factory 1386 | -5/Factory | Evolved 2 slots: Propulsion x1, Utility x1 1916 | -5/Factory | Identified exit to Factory 1952 | -5/Factory | Entered another Factory area 1952 | -4/Factory | Evolved 2 slots: Utility x2 2020 | -4/Factory | Identified exit to Research 2032 | -4/Factory | Entered Research 2032 | -3/Research | Evolved 2 slots: Power x1, Utility x1 2080 | -3/Research | Identified exit to Research 2210 | -3/Research | Entered another Research area 2210 | -2/Research | Evolved 2 slots: Propulsion x2 2476 | -2/Research | Discovered new exit (range 20) 2485 | -2/Research | Entered Testing 2486 | -2/Testing | Maximum security lockdown engaged 2507 | -2/Testing | Build established: Hacker-Sprinter 2758 | -2/Testing | Spotted Striker 2779 | -2/Testing | Discovered new exit (range 11) 2791 | -2/Testing | Entered Access 2791 | -1/Access | Evolved 2 slots: Utility x2 3137 | -1/Access | Crushed by falling debris 3140 | -1/Access | Crushed by falling debris 3140 | -1/Access | System corruption reached 10% 3156 | -1/Access | Crushed by falling debris 3156 | -1/Access | System corruption reached 30% 3187 | -1/Access | Lost 9 parts (3n6u) 3769 | -1/Access | Core integrity fell below 50% 3790 | -1/Access | Core integrity fell below 20% 3791 | -1/Access | First assault squad dispatched 3801 | -1/Access | Build established: Mutant 3802 | -1/Access | Destroyed by G-73 Enforcer with Phase Gun Last Messages --------------- A-15 Conveyor destroyed. System corrupted: Substantial component data lost. Slammed into R-10 Processor. Drone sends a signal. Slammed into R-10 Processor. Destabilizing: System corrupted (+1). Slammed into O-24 Administrator. Slammed into G-73 Enforcer. Machine Analyzer broken. Destabilizing: Short circuit. Slammed into G-73 Enforcer. ALERT: Unidentified disturbance in Zone 8Z, assault force dispatched. Slammed into G-73 Enforcer. TW/9U9U :ZM1G E|7#=VJ,ZWBYDWONNHCJWRED Critical hit (Burn: +37). Slammed into G-73 Enforcer. Slammed into A-15 Conveyor. Destabilizing: System corrupted (+1). Map ----- +----------------------------------------------------+ | ?????????????????????????????????????????????????? | | ?????????????????????????????????????????????????? | | ?????????????????????????????????????????????????? | | ?????????????????????????????????????????????????? | | ?????????????????????????????????????????????????? | | ?????????????????????????????????????????????????? | | ?????????????????????????????????????????????????? | | ?????????????????????????????????????????????????? | | ?????????????????????????????????????????????????? | | ?????????????????s?ss????????????????????????????? | | ???????????????????s?????????????????????????????? | | ?????????????????????????????????????????????????? | | ?????????????????????????????????????????????????? | | ????????????????????????????????????????#????????? | | ??????????????????????????????????????? #????????? | | ?????????????????????????????????????? #????????? | | ?????????????????????????????????????? #????????? | | ????????????????????????????????????? #????????? | | ???????????????????????????????????? #????????? | | ???????????????????????????????????? ?????????? | | ??????????????????????????????????? ???????????? | | ???????????##########+#############+######### #??? | | ??????????? ^ #??? | | ?????????? k #??? | | ?????????? g gA +??? | | ?????????? t @ g% pg% #??? | | ????????g????????###########+######p#######??????? | | ??????????????????????????? # g%g #?????????? | | ????????g?????????????????? # g #?????????? | | ?????????????????????????? # g " #?????????? | | ?????????????????????????? # """ #?????????? | | ????????????????????????? # p """ #?????????? | | ????????????????????????? #]g " #?????????? | | ????????????????????????# # p #?????????? | | ????????????????????????# # p #?????????? | | ????????????????????????# # % #?????????? | | ????????????????????????# ##/#######?????????? | | ????????????????????????# ##%#???????????????? | | ????????????????????????# ?#%#???????????????? | | ????????????????????????######?#%#???????????????? | | ???????????????????????????????# #???????????????? | | ???????????????????????????????# #???????????????? | | ???????????????????????????????# #???????????????? | | ???????????????????????????????#%#?????""????????? | | ???????????????????????????????# #?????""????????? | | ???????????????????????????????# #???""""""??????? | | ???????????????????????????????# #???""""""??????? | | ???????????????????????????????# #???? "" ??????? | | ????????????????????"""""?????## #?? "" #??? | | ????????????????????"""""?????+ # #??? | +----------------------------------------------------+ Best States ------------- Heat Dissipation 52 Energy Generation 35 Energy Capacity 400 Matter Stores 300 Matter Capacity 300 Sight Range 22 Terrain Scan Density 10 ECM Strength 1 Cloak Strength 2 Armor Coverage 450 Utility Shielding 33 Evasion (%) 63 Melee Accuracy 6 Offensive Hacking 32 Defensive Hacking 24 Item Schematics ----------------- None Robot Schematics ------------------ None Fabricated ------------ Nothing Repaired ---------- Nothing Studied --------- None Alien Tech Used ----------------- None Achievements -------------- For Science! Origins Challenges ------------ None Game ------ Seed MasterAlertArray Manual? 0 Play Time 01:14:29 Cumulative 45.8 hours Start 2025.12.26 @ 15:22:26 End 2025.12.26 @ 17:33:19 Sessions 4 Manual Loads 0 Difficulty Rogue Special Mode None Game No. 80 Rogue 79 Adventurer 1 Explorer 0 Win Type - Total 0 Types 0/0/0/0/0/0/0/0/0/0 Lore% 12 Gallery% 34 Achievement% 23 Wizard Run 0 Options --------- Layout 1 ASCII 0 Keyboard 0 Movement Arrows Keybinds 0 Fullscreen 1 Font 24/Smallcaps Map View 50x35 Zoom Use 0% Tactical HUD 0 Map Filters NONE Filters NONE Steam 1 RUN: 812b859a-aaed-4a79-b4b2-4947ae8a8d86